[Event "Mistrovství Čech mládeže 2023 - HD14"]
[Site "Harrachov, Czech Republic"]
[Date "2023.10.26"]
[Round "7.6"]
[White "Mikulka, Martin Michael"]
[Black "Pogorelskiy, Boris"]
[Result "0-1"]
[TimeControl "90m + 30s"]
[WhiteElo "1826"]
[BlackElo "1541"]

1. e4 {[%clk 01:30:57]} {[%emt 00:00:03]} c5 {[%clk 01:30:50]} {[%emt
00:00:10]} 2. Nf3 {[%clk 01:31:12]} {[%emt 00:00:14]} e6 {[%clk 01:31:11]}
{[%emt 00:00:10]} 3. d4 {[%clk 01:31:33]} {[%emt 00:00:09]} cxd4 {[%clk
01:31:28]} {[%emt 00:00:13]} 4. Nxd4 {[%clk 01:31:56]} {[%emt 00:00:06]} Nf6
{[%clk 01:31:41]} {[%emt 00:00:17]} 5. Nc3 {[%clk 01:32:14]} {[%emt 00:00:12]}
Nc6 {[%clk 01:32:00]} {[%emt 00:00:12]} 6. Nxc6 {[%clk 01:31:52]} {[%emt
00:00:50]} bxc6 {[%clk 01:32:27]} {[%emt 00:00:05]} 7. Bd3 {[%clk 01:32:10]}
{[%emt 00:00:11]} Qc7 {[%clk 01:32:44]} {[%emt 00:00:14]} 8. O-O {[%clk
01:31:54]} {[%emt 00:00:45]} Be7 {[%clk 01:32:43]} {[%emt 00:00:31]} 9. f4
{[%clk 01:27:59]} {[%emt 00:04:25]} a5 {[%clk 01:27:22]} {[%emt 00:05:51]} 10.
Kh1 {[%clk 01:24:06]} {[%emt 00:04:22]} Ba6 {[%clk 01:27:24]} {[%emt 00:00:28]}
11. e5 {[%clk 01:22:26]} {[%emt 00:02:10]} Nd5 {[%clk 01:27:08]} {[%emt
00:00:46]} 12. Ne4 {[%clk 01:21:30]} {[%emt 00:01:26]} f5 {[%clk 01:18:10]}
{[%emt 00:09:28]} 13. exf6 {[%clk 01:15:00]} {[%emt 00:07:00]} Nxf6 {[%clk
01:18:28]} {[%emt 00:00:12]} 14. Nxf6+ {[%clk 01:14:18]} {[%emt 00:01:13]} Bxf6
{[%clk 01:18:45]} {[%emt 00:00:13]} 15. Bxa6 {[%clk 01:11:30]} {[%emt
00:03:19]} Rxa6 {[%clk 01:19:10]} {[%emt 00:00:06]} 16. Qe2 {[%clk 01:08:15]}
{[%emt 00:03:44]} Ra8 {[%clk 01:18:25]} {[%emt 00:01:15]} 17. f5 {[%clk
01:06:44]} {[%emt 00:02:01]} O-O {[%clk 01:16:55]} {[%emt 00:02:00]} 18. fxe6
{[%clk 01:06:34]} {[%emt 00:00:40]} Rfe8 {[%clk 01:17:19]} {[%emt 00:00:06]} 19.
Rxf6 {[%clk 00:52:45]} {[%emt 00:14:18]} gxf6 {[%clk 01:17:10]} {[%emt
00:00:40]} 20. Qg4+ {[%clk 00:52:53]} {[%emt 00:00:22]} Kh8 {[%clk 01:17:31]}
{[%emt 00:00:09]} 21. Bf4 {[%clk 00:53:03]} {[%emt 00:00:19]} d6 {[%clk
01:15:44]} {[%emt 00:02:17]} 22. Rd1 {[%clk 00:52:11]} {[%emt 00:01:22]} Rad8
{[%clk 01:16:03]} {[%emt 00:00:10]} 23. Qf5 {[%clk 00:52:03]} {[%emt 00:00:38]}
Qe7 {[%clk 01:15:50]} {[%emt 00:00:43]} 24. Qxa5 {[%clk 00:37:35]} {[%emt
00:14:58]} Qxe6 {[%clk 01:15:37]} {[%emt 00:00:44]} 25. Qc3 {[%clk 00:36:52]}
{[%emt 00:01:13]} d5 {[%clk 01:12:33]} {[%emt 00:03:34]} 26. h3 {[%clk
00:36:20]} {[%emt 00:01:01]} d4 {[%clk 01:08:57]} {[%emt 00:04:06]} 27. Rxd4
{[%clk 00:29:09]} {[%emt 00:07:39]} Qe1+ {[%clk 01:08:29]} {[%emt 00:01:00]} 28.
Kh2 {[%clk 00:29:32]} {[%emt 00:00:08]} Qxc3 {[%clk 01:08:55]} {[%emt
00:00:03]} 29. bxc3 {[%clk 00:29:58]} {[%emt 00:00:04]} Rxd4 {[%clk 01:09:22]}
{[%emt 00:00:04]} 30. cxd4 {[%clk 00:30:19]} {[%emt 00:00:09]} Re4 {[%clk
01:09:51]} 31. Bc1 {[%clk 00:29:05]} {[%emt 00:01:42]} Rxd4 {[%clk 01:10:16]}
{[%emt 00:00:05]} 32. Bb2 {[%clk 00:29:34]} {[%emt 00:00:02]} Rd6 {[%clk
01:10:17]} {[%emt 00:00:29]} 33. a4 {[%clk 00:25:05]} {[%emt 00:04:58]} Kg7
{[%clk 01:10:24]} {[%emt 00:00:23]} 34. a5 {[%clk 00:24:56]} {[%emt 00:00:40]}
Rd5 {[%clk 01:09:52]} {[%emt 00:01:02]} 35. Bc3 {[%clk 00:23:25]} {[%emt
00:02:00]} Rc5 {[%clk 01:10:18]} {[%emt 00:00:04]} 36. Bd4 {[%clk 00:21:21]}
{[%emt 00:02:33]} Rxa5 {[%clk 01:10:38]} {[%emt 00:00:11]} 37. c3 {[%clk
00:21:45]} {[%emt 00:00:05]} Ra4 {[%clk 01:10:49]} {[%emt 00:00:19]} 38. Be3
{[%clk 00:21:50]} {[%emt 00:00:25]} Rc4 {[%clk 01:11:14]} {[%emt 00:00:05]} 39.
Bd2 {[%clk 00:22:15]} {[%emt 00:00:05]} Re4 {[%clk 01:11:07]} {[%emt 00:00:37]}
40. Bc1 {[%clk 00:21:57]} {[%emt 00:00:48]} Re2 {[%clk 01:11:18]} {[%emt
00:00:19]} 41. Ba3 {[%clk 00:22:21]} {[%emt 00:00:05]} Re3 {[%clk 01:11:04]}
{[%emt 00:00:45]} 42. Bb4 {[%clk 00:22:27]} {[%emt 00:00:24]} Rd3 {[%clk
01:11:04]} {[%emt 00:00:30]} 43. Kg1 {[%clk 00:21:58]} {[%emt 00:00:59]} Kg6
{[%clk 01:10:03]} {[%emt 00:01:32]} 44. Kf2 {[%clk 00:22:16]} {[%emt 00:00:11]}
c5 {[%clk 01:10:13]} {[%emt 00:00:21]} 45. Bxc5 {[%clk 00:22:38]} {[%emt
00:00:08]} Rxc3 {[%clk 01:10:35]} {[%emt 00:00:08]} 46. Bd6 {[%clk 00:21:54]}
{[%emt 00:01:13]} h5 {[%clk 01:10:29]} {[%emt 00:00:36]} 47. h4 {[%clk
00:21:30]} {[%emt 00:00:53]} Kf5 {[%clk 01:10:33]} {[%emt 00:00:27]} 48. g3
{[%clk 00:21:51]} {[%emt 00:00:09]} Kg4 {[%clk 01:10:57]} {[%emt 00:00:07]} 49.
Bb8 {[%clk 00:19:05]} {[%emt 00:03:16]} f5 {[%clk 01:11:19]} {[%emt 00:00:09]}
50. Bf4 {[%clk 00:18:31]} {[%emt 00:01:02]} Rc2+ {[%clk 01:11:44]} {[%emt
00:00:06]} 51. Kg1 {[%clk 00:18:54]} {[%emt 00:00:07]} Kf3 {[%clk 01:11:55]}
{[%emt 00:00:19]} 52. Kh1 {[%clk 00:18:59]} {[%emt 00:00:24]} Rg2 {[%clk
01:12:18]} {[%emt 00:00:07]} 53. Bc7 {[%clk 00:19:03]} {[%emt 00:00:27]} Rxg3
{[%clk 01:12:44]} {[%emt 00:00:04]} 54. Kh2 {[%clk 00:19:22]} {[%emt 00:00:11]}
Rg4 {[%clk 01:13:03]} {[%emt 00:00:11]} 55. Bd8 {[%clk 00:19:38]} {[%emt
00:00:13]} Ke2 {[%clk 01:13:16]} {[%emt 00:00:17]} 56. Be7 {[%clk 00:19:27]}
{[%emt 00:00:41]} f4 {[%clk 01:13:41]} {[%emt 00:00:04]} 57. Bf6 {[%clk
00:19:25]} {[%emt 00:00:32]} f3 {[%clk 01:14:06]} {[%emt 00:00:06]} 58. Bg5
{[%clk 00:19:45]} {[%emt 00:00:09]} f2 {[%clk 01:14:28]} {[%emt 00:00:09]} 0-1

[Event "Mistrovství Čech mládeže 2023 - HD14"]
[Site "Harrachov, Czech Republic"]
[Date "2023.10.26"]
[Round "7.7"]
[White "Chon, Jeremy"]
[Black "Chernyy, Andrey"]
[Result "1/2-1/2"]
[TimeControl "90m + 30s"]
[WhiteElo "1538"]
[BlackElo "1655"]

1. Nf3 {[%clk 01:30:59]} {[%emt 00:44:18]} d5 {[%clk 01:30:55]} 2. d4 {[%clk
01:31:29]} {[%emt 00:00:06]} Nf6 {[%clk 01:31:18]} {[%emt 00:00:07]} 3. Bf4
{[%clk 01:31:57]} {[%emt 00:00:02]} c5 {[%clk 01:31:35]} {[%emt 00:00:14]} 4.
e3 {[%clk 01:32:23]} {[%emt 00:00:04]} Nc6 {[%clk 01:31:39]} {[%emt 00:00:26]}
5. c3 {[%clk 01:32:38]} {[%emt 00:00:15]} Qb6 {[%clk 01:31:59]} {[%emt
00:00:09]} 6. Qb3 {[%clk 01:32:56]} {[%emt 00:00:12]} c4 {[%clk 01:32:20]}
{[%emt 00:00:09]} 7. Qxb6 {[%clk 01:33:21]} {[%emt 00:00:05]} axb6 {[%clk
01:32:45]} {[%emt 00:00:06]} 8. Na3 {[%clk 01:33:44]} {[%emt 00:00:07]} Na7
{[%clk 01:19:00]} {[%emt 00:14:14]} 9. h3 {[%clk 01:21:10]} {[%emt 00:13:04]}
Bf5 {[%clk 01:14:08]} {[%emt 00:05:23]} 10. Kd1 {[%clk 01:03:12]} {[%emt
00:18:27]} Ne4 {[%clk 01:07:17]} {[%emt 00:07:20]} 11. Bg3 {[%clk 01:01:48]}
{[%emt 00:01:55]} e6 {[%clk 01:03:51]} {[%emt 00:03:57]} 12. Nc2 {[%clk
01:00:04]} {[%emt 00:02:14]} g5 {[%clk 00:59:28]} {[%emt 00:04:53]} 13. Nd2
{[%clk 00:56:24]} {[%emt 00:04:10]} Nxg3 {[%clk 00:57:58]} {[%emt 00:01:59]} 14.
fxg3 {[%clk 00:56:50]} {[%emt 00:00:04]} h5 {[%clk 00:57:10]} {[%emt 00:01:18]}
15. e4 Bxe4 {[%clk 00:55:11]} 16. Nxe4 {[%clk 00:49:16]} {[%emt 00:00:23]} dxe4
{[%clk 00:55:34]} {[%emt 00:00:06]} 17. Bxc4 {[%clk 00:48:42]} {[%emt
00:01:04]} Ke7 {[%clk 00:48:18]} {[%emt 00:07:46]} 18. Ke2 {[%clk 00:36:42]}
{[%emt 00:12:30]} Nc8 {[%clk 00:44:51]} {[%emt 00:03:58]} 19. Bb3 {[%clk
00:29:55]} {[%emt 00:07:17]} Nd6 {[%clk 00:39:52]} {[%emt 00:05:29]} 20. Ne3
{[%clk 00:18:30]} {[%emt 00:11:55]} f5 {[%clk 00:36:14]} {[%emt 00:04:08]} 21.
Rhf1 {[%clk 00:12:44]} {[%emt 00:06:15]} Bh6 {[%clk 00:31:46]} {[%emt
00:04:56]} 22. Nc4 {[%clk 00:10:03]} {[%emt 00:03:13]} Nxc4 {[%clk 00:30:36]}
{[%emt 00:01:41]} 23. Bxc4 {[%clk 00:10:32]} {[%emt 00:00:01]} Rac8 {[%clk
00:30:32]} {[%emt 00:00:33]} 24. Bb3 {[%clk 00:10:46]} f4 {[%clk 00:21:24]}
{[%emt 00:09:53]} 25. Rad1 {[%clk 00:09:07]} Rhd8 {[%clk 00:17:31]} {[%emt
00:06:31]} 26. Bc2 {[%clk 00:07:57]} e3 {[%clk 00:16:12]} {[%emt 00:03:30]} 27.
gxf4 {[%clk 00:07:53]} 1/2-1/2

[Event "Mistrovství Čech mládeže 2023 - HD14"]
[Site "Harrachov, Czech Republic"]
[Date "2023.10.26"]
[Round "7.8"]
[White "Ježek, Jakub"]
[Black "Seidl, Václav"]
[Result "1-0"]
[TimeControl "90m + 30s"]
[WhiteElo "1642"]
[BlackElo "1478"]

1. d4 {[%clk 01:30:59]} d5 {[%clk 01:30:53]} {[%emt 00:00:07]} 2. c4 {[%clk
01:31:25]} {[%emt 00:00:05]} e6 {[%clk 01:31:20]} {[%emt 00:00:03]} 3. Nc3
{[%clk 01:31:44]} {[%emt 00:00:10]} Nf6 {[%clk 01:31:45]} {[%emt 00:00:04]} 4.
Nf3 {[%clk 01:31:54]} {[%emt 00:00:20]} Be7 {[%clk 01:32:10]} {[%emt 00:00:06]}
5. g3 {[%clk 01:31:18]} {[%emt 00:01:05]} O-O {[%clk 01:32:31]} {[%emt
00:00:09]} 6. Bg2 {[%clk 01:30:52]} {[%emt 00:00:57]} b6 {[%clk 01:30:09]}
{[%emt 00:02:51]} 7. O-O {[%clk 01:29:06]} {[%emt 00:02:16]} Bb7 {[%clk
01:30:34]} {[%emt 00:00:06]} 8. Ne5 {[%clk 01:29:13]} {[%emt 00:00:23]} Nbd7
{[%clk 01:29:04]} {[%emt 00:01:59]} 9. Bf4 {[%clk 01:29:00]} {[%emt 00:00:44]}
Qc8 {[%clk 01:26:11]} {[%emt 00:03:22]} 10. cxd5 {[%clk 01:28:10]} {[%emt
00:01:21]} Nxd5 {[%clk 01:26:16]} {[%emt 00:00:24]} 11. Nxd5 {[%clk 01:27:08]}
{[%emt 00:01:33]} exd5 {[%clk 01:26:14]} {[%emt 00:00:32]} 12. Rc1 {[%clk
01:25:55]} {[%emt 00:01:43]} Nxe5 {[%clk 01:23:28]} {[%emt 00:03:17]} 13. Bxe5
{[%clk 01:26:02]} {[%emt 00:00:23]} Bd8 {[%clk 01:21:28]} {[%emt 00:02:30]} 14.
Rc3 {[%clk 01:15:55]} {[%emt 00:10:37]} Qd7 {[%clk 01:17:44]} {[%emt 00:04:13]}
15. Qc2 {[%clk 01:10:10]} {[%emt 00:06:13]} c6 {[%clk 01:14:01]} {[%emt
00:04:15]} 16. e4 {[%clk 01:04:11]} {[%emt 00:06:30]} f6 {[%clk 01:10:03]}
{[%emt 00:04:27]} 17. exd5 {[%clk 01:01:18]} {[%emt 00:03:23]} cxd5 {[%clk
01:06:57]} {[%emt 00:03:36]} 18. Bf4 {[%clk 00:58:26]} {[%emt 00:03:22]} g5
{[%clk 01:00:48]} {[%emt 00:06:38]} 19. Bd2 {[%clk 00:53:59]} {[%emt 00:04:58]}
Kg7 {[%clk 00:59:13]} {[%emt 00:02:05]} 20. f4 {[%clk 00:53:50]} {[%emt
00:00:40]} Qd6 {[%clk 00:56:47]} {[%emt 00:02:56]} 21. fxg5 {[%clk 00:52:44]}
{[%emt 00:01:36]} fxg5 {[%clk 00:53:58]} {[%emt 00:03:18]} 22. Rxf8 {[%clk
00:51:35]} {[%emt 00:01:40]} Kxf8 {[%clk 00:51:31]} {[%emt 00:02:56]} 23. Qxh7
{[%clk 00:50:48]} {[%emt 00:01:18]} Ba6 {[%clk 00:50:14]} {[%emt 00:01:47]} 24.
Rf3+ {[%clk 00:50:21]} {[%emt 00:00:55]} Bf6 {[%clk 00:48:40]} {[%emt
00:02:05]} 25. Qh8+ {[%clk 00:48:49]} {[%emt 00:02:00]} Ke7 {[%clk 00:48:28]}
{[%emt 00:00:43]} 26. Qxa8 {[%clk 00:48:44]} {[%emt 00:00:36]} Bxd4+ {[%clk
00:48:35]} {[%emt 00:00:23]} 27. Kh1 {[%clk 00:48:19]} {[%emt 00:00:53]} Qg6
{[%clk 00:48:24]} {[%emt 00:00:43]} 28. Qxa7+ {[%clk 00:48:09]} {[%emt
00:00:41]} 1-0

[Event "Mistrovství Čech mládeže 2023 - HD14"]
[Site "Harrachov, Czech Republic"]
[Date "2023.10.26"]
[Round "7.9"]
[White "Slívová, Linda"]
[Black "Bělaška, Adam"]
[Result "1-0"]
[TimeControl "90m + 30s"]
[WhiteElo "1624"]
[BlackElo "1503"]

1. d4 {[%clk 01:30:57]} {[%emt 00:00:01]} d5 {[%clk 01:30:56]} {[%emt
00:00:04]} 2. Nf3 {[%clk 01:31:20]} {[%emt 00:00:08]} Nf6 {[%clk 01:31:14]}
{[%emt 00:00:12]} 3. e3 {[%clk 01:31:37]} {[%emt 00:00:13]} e6 {[%clk
01:30:44]} {[%emt 00:00:59]} 4. Bd3 {[%clk 01:31:27]} {[%emt 00:00:41]} c5
{[%clk 01:30:48]} {[%emt 00:00:25]} 5. b3 {[%clk 01:31:12]} {[%emt 00:00:47]}
Nbd7 {[%clk 01:30:11]} {[%emt 00:01:07]} 6. Nbd2 {[%clk 01:30:40]} {[%emt
00:01:02]} b6 {[%clk 01:30:03]} {[%emt 00:00:38]} 7. O-O {[%clk 01:28:50]}
{[%emt 00:02:19]} Bd6 {[%clk 01:29:59]} {[%emt 00:00:34]} 8. Bb2 {[%clk
01:28:04]} {[%emt 00:01:17]} O-O {[%clk 01:30:04]} {[%emt 00:00:24]} 9. Ne5
{[%clk 01:23:53]} {[%emt 00:04:41]} Qc7 {[%clk 01:27:57]} {[%emt 00:02:37]} 10.
f4 {[%clk 01:22:15]} {[%emt 00:02:09]} Bb7 {[%clk 01:27:13]} {[%emt 00:01:14]}
11. Qe2 {[%clk 01:09:04]} {[%emt 00:13:41]} Ne4 {[%clk 01:22:02]} {[%emt
00:05:41]} 12. c4 {[%clk 01:04:04]} {[%emt 00:05:30]} f5 {[%clk 01:18:00]}
{[%emt 00:04:31]} 13. Rac1 {[%clk 01:00:05]} {[%emt 00:04:29]} Qd8 {[%clk
01:14:56]} {[%emt 00:03:33]} 14. cxd5 {[%clk 00:45:38]} {[%emt 00:14:58]} exd5
{[%clk 01:14:31]} {[%emt 00:00:55]} 15. Bb5 {[%clk 00:44:14]} {[%emt 00:01:54]}
Ndf6 {[%clk 01:13:33]} {[%emt 00:01:27]} 16. Ndf3 {[%clk 00:35:55]} {[%emt
00:08:50]} Rc8 {[%clk 01:12:09]} {[%emt 00:01:54]} 17. Qe1 {[%clk 00:29:47]}
{[%emt 00:06:38]} a6 {[%clk 01:10:51]} {[%emt 00:01:48]} 18. Bd3 {[%clk
00:26:23]} {[%emt 00:03:54]} b5 {[%clk 01:08:35]} {[%emt 00:02:46]} 19. dxc5
{[%clk 00:26:26]} {[%emt 00:00:27]} Bxc5 {[%clk 01:07:59]} {[%emt 00:01:06]} 20.
Bd4 {[%clk 00:25:48]} {[%emt 00:01:08]} Qe7 {[%clk 01:01:21]} {[%emt 00:07:07]}
21. Nh4 {[%clk 00:20:41]} {[%emt 00:05:37]} Nd7 {[%clk 01:00:31]} {[%emt
00:01:19]} 22. Nxd7 {[%clk 00:13:13]} {[%emt 00:07:58]} Bxd4 {[%clk 00:57:33]}
{[%emt 00:03:29]} 23. exd4 {[%clk 00:10:42]} {[%emt 00:03:01]} Qxd7 {[%clk
00:57:16]} {[%emt 00:00:46]} 24. Nf3 {[%clk 00:09:16]} {[%emt 00:01:56]} Rxc1
{[%clk 00:56:54]} {[%emt 00:00:53]} 25. Qxc1 {[%clk 00:09:39]} {[%emt
00:00:08]} Rc8 {[%clk 00:57:21]} {[%emt 00:00:03]} 26. Qb2 {[%clk 00:08:51]}
{[%emt 00:01:18]} Qc7 {[%clk 00:56:25]} {[%emt 00:01:25]} 27. Ne5 {[%clk
00:06:51]} {[%emt 00:02:31]} b4 {[%clk 00:55:22]} {[%emt 00:01:33]} 28. Qe2
{[%clk 00:04:12]} {[%emt 00:03:08]} Qc3 {[%clk 00:54:39]} {[%emt 00:01:12]} 29.
Nf3 {[%clk 00:04:13]} {[%emt 00:00:29]} a5 {[%clk 00:54:35]} {[%emt 00:00:35]}
30. Kh1 {[%clk 00:03:17]} {[%emt 00:01:26]} g6 {[%clk 00:44:37]} {[%emt
00:10:27]} 31. Kg1 {[%clk 00:03:00]} {[%emt 00:00:47]} Re8 {[%clk 00:43:48]}
{[%emt 00:01:18]} 32. Qc2 {[%clk 00:02:14]} {[%emt 00:01:17]} Qxc2 {[%clk
00:43:15]} {[%emt 00:01:04]} 33. Bxc2 {[%clk 00:02:43]} {[%emt 00:00:01]} Nc3
{[%clk 00:43:28]} {[%emt 00:00:17]} 34. Bd3 {[%clk 00:01:52]} {[%emt 00:01:22]}
Re3 {[%clk 00:43:29]} {[%emt 00:00:28]} 35. Ne5 {[%clk 00:01:36]} {[%emt
00:00:46]} Ne4 {[%clk 00:42:41]} {[%emt 00:01:17]} 36. Rc1 {[%clk 00:01:23]}
{[%emt 00:00:44]} Kf8 {[%clk 00:40:38]} {[%emt 00:02:32]} 37. Kf1 {[%clk
00:01:34]} {[%emt 00:00:20]} Ke8 {[%clk 00:35:30]} {[%emt 00:05:39]} 38. Rc7
{[%clk 00:01:54]} {[%emt 00:00:09]} Rxd3 {[%clk 00:34:24]} {[%emt 00:01:35]} 39.
Nxd3 {[%clk 00:02:02]} {[%emt 00:00:22]} Ba6 {[%clk 00:34:47]} {[%emt
00:00:07]} 40. Ke2 {[%clk 00:02:21]} {[%emt 00:00:12]} Nc3+ {[%clk 00:34:59]}
{[%emt 00:00:17]} 41. Kd2 {[%clk 00:02:27]} {[%emt 00:00:23]} Nxa2 {[%clk
00:34:50]} {[%emt 00:00:40]} 42. Ra7 {[%clk 00:02:34]} {[%emt 00:00:24]} 1-0

[Event "Mistrovství Čech mládeže 2023 - HD14"]
[Site "Harrachov, Czech Republic"]
[Date "2023.10.26"]
[Round "7.10"]
[White "Bludský, Hynek"]
[Black "Hrdlička, Jan"]
[Result "1-0"]
[TimeControl "90m + 30s"]
[WhiteElo "1547"]
[BlackElo "1418"]

1. e4 {[%clk 01:30:58]} {[%emt 00:00:01]} c5 {[%clk 01:30:53]} {[%emt
00:00:08]} 2. Nf3 {[%clk 01:31:24]} {[%emt 00:00:04]} d6 {[%clk 01:31:17]}
{[%emt 00:00:06]} 3. d4 {[%clk 01:31:50]} {[%emt 00:00:04]} cxd4 {[%clk
01:31:37]} {[%emt 00:00:08]} 4. Nxd4 {[%clk 01:32:16]} {[%emt 00:00:05]} Nf6
{[%clk 01:31:51]} {[%emt 00:00:16]} 5. Nc3 {[%clk 01:32:26]} {[%emt 00:00:20]}
g6 {[%clk 01:32:04]} {[%emt 00:00:17]} 6. Be3 {[%clk 01:32:46]} {[%emt
00:00:10]} Bg7 {[%clk 01:32:12]} {[%emt 00:00:23]} 7. f3 {[%clk 01:32:31]}
{[%emt 00:00:44]} O-O {[%clk 01:32:24]} {[%emt 00:00:18]} 8. Qd2 {[%clk
01:32:56]} {[%emt 00:00:05]} Nc6 {[%clk 01:32:24]} {[%emt 00:00:30]} 9. g4
{[%clk 01:33:19]} {[%emt 00:00:07]} Be6 {[%clk 01:30:16]} {[%emt 00:02:39]} 10.
Nxe6 {[%clk 01:30:00]} {[%emt 00:03:48]} fxe6 {[%clk 01:30:37]} {[%emt
00:00:09]} 11. Be2 {[%clk 01:27:58]} {[%emt 00:02:31]} Qc8 {[%clk 01:25:48]}
{[%emt 00:05:20]} 12. h4 {[%clk 01:27:25]} {[%emt 00:01:03]} Ne5 {[%clk
01:22:02]} {[%emt 00:04:16]} 13. h5 {[%clk 01:26:05]} {[%emt 00:01:50]} Nc4
{[%clk 01:17:55]} {[%emt 00:04:38]} 14. Bxc4 {[%clk 01:26:14]} {[%emt
00:00:21]} Qxc4 {[%clk 01:18:19]} {[%emt 00:00:05]} 15. hxg6 {[%clk 01:25:42]}
{[%emt 00:01:03]} hxg6 {[%clk 01:18:14]} {[%emt 00:00:31]} 16. Bh6 {[%clk
01:15:19]} {[%emt 00:10:56]} Rac8 {[%clk 01:15:09]} {[%emt 00:03:35]} 17. a3
{[%clk 00:52:08]} {[%emt 00:23:41]} a5 {[%clk 00:56:11]} {[%emt 00:19:28]} 18.
Qd3 {[%clk 00:44:01]} {[%emt 00:08:37]} Qxd3 {[%clk 00:51:04]} {[%emt
00:05:37]} 19. cxd3 {[%clk 00:44:25]} {[%emt 00:00:06]} Nd7 {[%clk 00:51:02]}
{[%emt 00:00:32]} 20. Bxg7 {[%clk 00:42:23]} {[%emt 00:02:32]} Kxg7 {[%clk
00:51:15]} {[%emt 00:00:16]} 21. Ke2 {[%clk 00:42:11]} {[%emt 00:00:42]} Ne5
{[%clk 00:50:38]} {[%emt 00:01:08]} 22. Rh3 {[%clk 00:40:34]} {[%emt 00:02:06]}
Rf4 {[%clk 00:41:57]} {[%emt 00:09:11]} 23. Rah1 {[%clk 00:38:14]} {[%emt
00:02:50]} Rg8 {[%clk 00:34:12]} {[%emt 00:08:15]} 24. Nb5 {[%clk 00:32:24]}
{[%emt 00:06:21]} Nc6 {[%clk 00:32:14]} {[%emt 00:02:28]} 25. Ke3 {[%clk
00:29:15]} {[%emt 00:03:39]} Rf7 {[%clk 00:26:10]} {[%emt 00:06:34]} 26. Nc7
{[%clk 00:27:01]} {[%emt 00:02:44]} Kf6 {[%clk 00:24:24]} {[%emt 00:02:16]} 27.
Rh7 {[%clk 00:24:08]} {[%emt 00:03:22]} Rxh7 {[%clk 00:22:55]} {[%emt
00:02:00]} 28. Rxh7 {[%clk 00:24:14]} {[%emt 00:00:23]} e5 {[%clk 00:18:42]}
{[%emt 00:04:43]} 29. Nd5+ {[%clk 00:23:01]} {[%emt 00:01:43]} Ke6 {[%clk
00:18:53]} {[%emt 00:00:20]} 30. g5 {[%clk 00:22:47]} {[%emt 00:00:43]} b5
{[%clk 00:18:03]} {[%emt 00:01:22]} 31. Nc7+ {[%clk 00:22:53]} {[%emt
00:00:23]} Kd7 {[%clk 00:17:40]} {[%emt 00:00:53]} 32. Nxb5 {[%clk 00:23:18]}
{[%emt 00:00:05]} Rb8 {[%clk 00:17:15]} {[%emt 00:00:54]} 33. a4 {[%clk
00:23:40]} {[%emt 00:00:08]} Rc8 {[%clk 00:14:03]} {[%emt 00:03:43]} 34. Rg7
{[%clk 00:22:28]} {[%emt 00:01:41]} Nd4 {[%clk 00:11:13]} {[%emt 00:03:21]} 35.
Nxd4 {[%clk 00:22:23]} {[%emt 00:00:35]} exd4+ {[%clk 00:11:38]} {[%emt
00:00:04]} 36. Kxd4 {[%clk 00:22:45]} {[%emt 00:00:08]} Rc2 {[%clk 00:12:05]}
{[%emt 00:00:04]} 37. Rxg6 {[%clk 00:21:57]} {[%emt 00:01:17]} Rxb2 {[%clk
00:12:17]} {[%emt 00:00:18]} 38. Rg8 {[%clk 00:20:37]} {[%emt 00:01:50]} Rb4+
{[%clk 00:12:25]} {[%emt 00:00:22]} 39. Ke3 {[%clk 00:20:50]} {[%emt 00:00:16]}
Rxa4 {[%clk 00:12:42]} {[%emt 00:00:14]} 40. Ra8 {[%clk 00:19:46]} {[%emt
00:01:34]} Ra1 {[%clk 00:12:00]} {[%emt 00:01:12]} 41. f4 {[%clk 00:18:11]}
{[%emt 00:02:04]} Ke6 {[%clk 00:11:33]} {[%emt 00:00:58]} 42. Kd4 {[%clk
00:17:43]} {[%emt 00:00:58]} a4 {[%clk 00:11:12]} {[%emt 00:00:51]} 43. f5+
{[%clk 00:17:29]} {[%emt 00:00:44]} Kf7 {[%clk 00:10:26]} {[%emt 00:01:16]} 44.
g6+ {[%clk 00:17:44]} {[%emt 00:00:14]} Kg7 {[%clk 00:10:32]} {[%emt 00:00:25]}
45. Re8 {[%clk 00:17:35]} {[%emt 00:00:37]} e5+ {[%clk 00:08:00]} {[%emt
00:03:04]} 46. Kd5 {[%clk 00:17:50]} {[%emt 00:00:15]} a3 {[%clk 00:07:00]}
{[%emt 00:01:31]} 47. Re7+ {[%clk 00:18:03]} {[%emt 00:00:15]} Kg8 {[%clk
00:06:23]} {[%emt 00:01:08]} 48. f6 {[%clk 00:18:24]} {[%emt 00:00:09]} Kf8
{[%clk 00:05:03]} {[%emt 00:01:51]} 49. g7+ {[%clk 00:18:46]} {[%emt 00:00:08]}
1-0